fUST/lending_fUST_20250107
["ID","MTS","AMOUNT","RATE_DAILY","PERIOD"]
[347925172,1736211046907,-500.0,0.000193,2]
[347925173,1736211046918,-214.6267927,0.000193,2]
[347925174,1736211046927,-153.0,0.000193,2]
[347925175,1736211046936,-577.66607768,0.0001938,2]
[347925176,1736211046945,-500.0,0.00019399,3]
[347925177,1736211046955,-214.6267927,0.000194,2]
[347925178,1736211046964,-153.0,0.000194,2]
[347925179,1736211046974,-153.0,0.000194,2]
[347925180,1736211046983,-214.1799157,0.000194,2]
[347925181,1736211046993,-306.0,0.000194,2]
[347925182,1736211047002,-777.0,0.000194,2]
[347925183,1736211047011,-164.70367345,0.0001945,2]
[347925184,1736211047021,-500.0,0.0001945,3]
[347925185,1736211047031,-500.0,0.0001945,3]
[347925186,1736211047041,-500.0,0.0001945,3]
[347925187,1736211047050,-500.0,0.0001945,3]
[347925188,1736211047059,-500.0,0.0001945,3]
[347925189,1736211047069,-500.0,0.0001945,3]
[347925190,1736211047078,-500.0,0.0001945,3]
[347925191,1736211047087,-9102.1940191,0.00019451,2]
[347925192,1736211047096,-81003.3886191,0.00019451,2]
[347925193,1736211047105,-73615.66105567,0.00019451,4]
[347925194,1736211047118,-9745.31195577,0.00019451,4]
[347925195,1736211047133,-34852.60265449,0.00019451,4]
[347925199,1736211239758,161.727248,0.00013973,2]
[347925200,1736212027123,-165.39632,0.000181,2]
[347925201,1736212027145,-130.93868804,0.00018394,2]
[347925202,1736212046127,-169.06131196,0.00018394,2]
[347925203,1736212046148,-24900.0,0.00018395,2]
[347925204,1736212046169,-473.985,0.0001848,2]
[347925205,1736212046189,-150.0,0.000189,2]
[347925206,1736212046209,-410.3150195,0.00019,2]
[347925230,1736212232667,-1866.5,0.000181,2]
[347925232,1736212232679,-1161.12978024,0.000181,2]
[347925233,1736212232690,-343.55762178,0.000181,2]
[347925234,1736212232702,-558.21120081,0.000181,2]
[347925235,1736212232737,-164.17794277,0.000181,2]
[347925236,1736212232747,-1000.0,0.00018927,2]
[347925237,1736212232757,-1000.0,0.00018988,2]
[347925238,1736212232766,-640.0381925,0.00018996,2]
[347925239,1736212232777,-359.9618075,0.00018996,2]
[347925240,1736212232787,-3538.15874314,0.00019,2]
[347925241,1736212232804,-1054.52623736,0.00019,2]
[347925242,1736212232814,-165.77561685,0.00019049,2]
[347925243,1736212232823,-1000.0,0.00019053,2]
[347925244,1736212232833,-300.0,0.00019055,2]
[347925245,1736212232842,-189.579,0.00019056,2]
[347925246,1736212232851,-700.97570884,0.00019056,2]
[347925247,1736212232860,-263.53526651,0.00019077,2]
[347925248,1736212232872,-169.52182272,0.00019078,2]
[347925249,1736212232881,-153.0,0.000191,2]
[347925250,1736212232891,-153.0,0.000191,2]
[347925251,1736212232900,-153.0,0.000191,2]
[347925252,1736212232910,-1000.0,0.00019108,2]
[347925253,1736212232920,-153.5079275,0.00019123,2]
[347925254,1736212232929,-214.1837381,0.00019123,2]
[347925255,1736212232940,-1000.0,0.00019137,2]
[347925256,1736212232950,-169.52182272,0.00019169,2]
[347925257,1736212232960,-500.0,0.00019173,2]
[347925258,1736212232970,-500.0,0.00019177,2]
[347925259,1736212232979,-500.0,0.00019177,2]
[347925260,1736212232989,-500.0,0.00019177,2]
[347925261,1736212232998,-500.0,0.00019177,2]
[347925262,1736212233008,-500.0,0.00019177,2]
[347925263,1736212233017,-500.0,0.00019177,2]
[347925264,1736212233027,-500.0,0.00019177,2]
[347925265,1736212233036,-500.0,0.00019177,2]
[347925266,1736212233045,-501.32657431,0.00019177,2]
[347925267,1736212233055,-500.0,0.00019177,2]
[347925268,1736212233065,-500.0,0.00019177,2]
[347925269,1736212233074,-390.9963242,0.00019177,2]
[347925270,1736212233084,-500.0,0.00019177,2]
[347925271,1736212233093,-500.0,0.00019177,2]
[347925272,1736212233104,-500.0,0.00019177,2]
[347925273,1736212233115,-500.0,0.00019177,2]
[347925274,1736212233125,-500.0,0.00019177,2]
[347925275,1736212233135,-500.0,0.00019177,2]
[347925276,1736212233145,-500.0,0.00019177,2]
[347925277,1736212233155,-462.03851635,0.00019177,2]
[347925278,1736212233173,-37.96148365,0.00019177,2]
[347925279,1736212233183,-500.0,0.00019177,2]
[347925280,1736212233192,-500.0,0.00019177,2]
[347925281,1736212233203,-500.0,0.00019177,2]
[347925282,1736212233213,-500.0,0.00019177,2]
[347925283,1736212233222,-500.0,0.00019177,2]
[347925284,1736212233232,-500.0,0.00019177,2]
[347925285,1736212233241,-500.0,0.00019177,2]
[347925286,1736212233252,-500.0,0.00019177,2]
[347925287,1736212233262,-500.0,0.00019177,2]
[347925288,1736212233273,-500.0,0.00019177,2]
[347925289,1736212233283,-485.09290522,0.00019177,2]
[347925301,1736212238443,-14.90709478,0.00019177,2]
[347925303,1736212238454,-500.0,0.00019177,2]
[347925305,1736212238463,-500.0,0.00019177,2]
[347925307,1736212238473,-500.0,0.00019177,2]
[347925309,1736212238483,-500.0,0.00019177,2]
[347925311,1736212238492,-500.0,0.00019177,2]
[347925313,1736212238502,-500.0,0.00019177,2]
[347925315,1736212238511,-290.77341097,0.00019177,2]
[347925317,1736212238520,-500.0,0.00019177,2]
[347925319,1736212238530,-500.0,0.00019177,2]
[347925321,1736212238541,-500.0,0.00019177,2]
[347925323,1736212238550,-500.0,0.00019177,2]
[347925325,1736212238559,-500.0,0.00019177,2]
[347925327,1736212238568,-500.0,0.00019177,2]
[347925329,1736212238577,-355.90482825,0.00019177,2]
[347925331,1736212238587,-172.44427553,0.00019177,2]
[347925333,1736212238596,-227.27022448,0.00019177,2]
[347925335,1736212238605,-500.0,0.00019178,2]
[347925337,1736212238615,-500.0,0.00019178,2]
[347925339,1736212238624,-423.83784741,0.00019178,2]
[347925342,1736212238637,-76.16215259,0.00019178,2]
[347925344,1736212238647,-500.0,0.00019178,2]
[347925346,1736212238656,-25.76478341,0.00019178,2]
[347925348,1736212238671,-491.03590001,0.00019178,2]
[347925350,1736212238680,-500.0,0.00019178,2]
[347925352,1736212238688,-216.08731582,0.00019178,2]
[347925354,1736212238698,-500.0,0.00019178,2]
[347925356,1736212238709,-105.20792332,0.00019178,2]
[347925359,1736212238726,-394.79207668,0.00019178,2]
[347925361,1736212238737,-396.45840364,0.00019178,2]
[347925363,1736212238746,-500.0,0.00019178,2]
[347925365,1736212238756,-500.0,0.00019178,2]
[347925367,1736212238766,-500.0,0.00019178,2]
[347925369,1736212238775,-500.0,0.00019178,2]
[347925371,1736212238784,-500.0,0.00019178,2]
[347925373,1736212238793,-500.0,0.00019178,2]
[347925375,1736212238803,-500.0,0.00019178,2]
[347925377,1736212238812,-500.0,0.00019178,2]
[347925379,1736212238821,-623.30972656,0.00019178,2]
[347925381,1736212238831,-500.0,0.00019178,2]
[347925383,1736212238840,-500.0,0.00019178,2]
[347925385,1736212238850,-500.0,0.00019178,2]
[347925387,1736212238859,-6972.27,0.00019178,2]
[347925389,1736212238868,-500.0,0.00019178,2]
[347925391,1736212238877,-500.0,0.00019178,2]
[347925393,1736212238887,-500.0,0.00019178,2]
[347925395,1736212238895,-500.0,0.00019178,2]
[347925397,1736212238905,-500.0,0.00019178,2]
[347925399,1736212238915,-500.0,0.00019178,2]
[347925401,1736212238924,-500.0,0.00019178,2]
[347925403,1736212238933,-500.0,0.00019178,2]
[347925405,1736212238943,-500.0,0.00019178,2]
[347925407,1736212238953,-500.0,0.00019178,2]
[347925409,1736212238964,-958.61,0.00019178,2]
[347925411,1736212238973,-500.0,0.00019178,2]
[347925413,1736212238982,-500.0,0.00019178,2]
[347925415,1736212238992,-500.0,0.00019178,2]
[347925417,1736212239001,-500.0,0.00019178,2]
[347925419,1736212239011,-500.0,0.00019178,2]
[347925421,1736212239020,-500.0,0.00019178,2]
[347925423,1736212239029,-996.29,0.00019178,2]
[347925425,1736212239039,-500.0,0.00019178,2]
[347925427,1736212239050,-634.7,0.00019178,2]
[347925429,1736212239059,-500.0,0.00019178,2]
[347925431,1736212239068,-500.0,0.00019178,2]
[347925433,1736212239077,-500.0,0.00019178,2]
[347925435,1736212239087,-500.0,0.00019178,2]
[347925437,1736212239096,-873.98,0.00019178,2]
[347925439,1736212239106,-604.71,0.00019178,2]
[347925441,1736212239116,-500.0,0.00019178,2]
[347925443,1736212239125,-200.0,0.00019178,2]
[347925445,1736212239135,-500.0,0.00019178,2]
[347925447,1736212239144,-500.0,0.00019178,2]
[347925449,1736212239154,-500.0,0.00019178,2]
[347925451,1736212239163,-500.0,0.00019178,2]
[347925453,1736212239172,-552.1,0.00019178,2]
[347925455,1736212239182,-256.02732035,0.00019178,2]
[347925457,1736212239191,-853.3,0.00019178,2]
[347925459,1736212239201,-500.0,0.00019178,2]
[347925461,1736212239212,-500.0,0.00019178,2]
[347925463,1736212239221,-500.0,0.00019178,2]
[347925465,1736212239231,-518.66,0.00019178,2]
[347925467,1736212239240,-500.0,0.00019178,2]
[347925469,1736212239250,-500.0,0.00019178,2]
[347925471,1736212239259,-500.0,0.00019178,2]
[347925473,1736212239269,-500.0,0.00019178,2]
[347925475,1736212239278,-945.24,0.00019178,2]
[347925477,1736212239289,-500.0,0.00019178,2]
[347925479,1736212239299,-500.0,0.00019178,2]
[347925481,1736212239308,-500.1,0.00019178,2]
[347925484,1736212239320,-500.0,0.00019178,2]
[347925485,1736212239341,-601.66,0.00019178,2]
[347925487,1736212239352,-500.0,0.00019178,2]
[347925489,1736212239361,-500.0,0.00019178,2]
[347925491,1736212239370,-500.0,0.00019178,2]
[347925493,1736212239380,-500.0,0.00019178,2]
[347925495,1736212239389,-500.0,0.00019178,2]
[347925497,1736212239399,-500.0,0.00019178,2]
[347925499,1736212239408,-500.0,0.00019178,2]
[347925501,1736212239417,-500.0,0.00019178,2]
[347925503,1736212239427,-642.61,0.00019178,2]
[347925505,1736212239436,-602.05168975,0.00019178,2]
[347925507,1736212239445,-500.0,0.00019178,2]
[347925509,1736212239455,-500.0,0.00019178,2]
[347925511,1736212239464,-500.0,0.00019178,2]
[347925513,1736212239474,-828.45,0.00019178,2]
[347925516,1736212239484,-500.0,0.00019178,2]
[347925517,1736212239494,-412.22824479,0.00019178,2]
[347925519,1736212239503,-500.0,0.00019178,2]
[347925521,1736212239512,-500.0,0.00019178,2]
[347925524,1736212239522,-500.0,0.00019178,2]
[347925526,1736212239532,-841.56,0.00019178,2]
[347925528,1736212239540,-500.0,0.00019178,2]
[347925530,1736212239550,-500.0,0.00019178,2]
[347925532,1736212239559,-500.0,0.00019178,2]
[347925534,1736212239568,-500.0,0.00019178,2]
[347925536,1736212239577,-500.0,0.00019178,2]
[347925538,1736212239586,-500.0,0.00019178,2]
[347925540,1736212239595,-500.0,0.00019178,2]
[347925542,1736212239605,-3172.82,0.00019178,2]
[347925544,1736212239614,-500.0,0.00019178,2]
[347925546,1736212239623,-500.0,0.00019178,2]
[347925548,1736212239633,-500.0,0.00019178,2]
[347925550,1736212239642,-500.0,0.00019178,2]
[347925552,1736212239652,-500.0,0.00019178,2]
[347925554,1736212239663,-500.0,0.00019178,2]
[347925556,1736212239673,-500.0,0.00019178,2]
[347925558,1736212239682,-500.0,0.00019178,2]
[347925560,1736212239692,-500.0,0.00019178,2]
[347925562,1736212239702,-3184.12,0.00019178,2]
[347925564,1736212239714,-500.0,0.00019178,2]
[347925566,1736212239724,-500.0,0.00019178,2]
[347925568,1736212239734,-3170.68,0.00019178,2]
[347925570,1736212239743,-500.0,0.00019178,2]
[347925571,1736212239753,-500.0,0.00019178,2]
[347925574,1736212239763,-500.0,0.00019178,2]
[347925575,1736212239772,-500.0,0.00019178,2]
[347925578,1736212239782,-500.0,0.00019178,2]
[347925579,1736212239792,-500.0,0.00019178,2]
[347925581,1736212239801,-500.0,0.00019178,2]
[347925584,1736212239812,-500.0,0.00019178,2]
[347925586,1736212239821,-500.0,0.00019178,2]
[347925587,1736212239831,-500.0,0.00019178,2]
[347925589,1736212239840,-500.0,0.00019178,2]
[347925591,1736212239849,-655.67,0.00019178,2]
[347925594,1736212239859,-500.0,0.00019178,2]
[347925596,1736212239869,-500.0,0.00019178,2]
[347925597,1736212239878,-550.71,0.00019178,2]
[347925600,1736212239889,-780.56,0.00019178,2]
[347925602,1736212239898,-500.0,0.00019178,2]
[347925604,1736212239908,-500.0,0.00019178,2]
[347925606,1736212239918,-4568.74,0.00019178,2]
[347925621,1736212240049,-500.0,0.00019178,2]
[347925622,1736212240091,-500.0,0.00019178,2]
[347925623,1736212240101,-500.0,0.00019178,2]
[347925624,1736212240111,-500.0,0.00019178,2]
[347925625,1736212240120,-500.0,0.00019178,2]
[347925626,1736212240130,-500.0,0.00019178,2]
[347925628,1736212240143,-500.0,0.00019178,2]
[347925629,1736212240152,-500.0,0.00019178,2]
[347925630,1736212240162,-500.0,0.00019178,2]
[347925631,1736212240172,-500.0,0.00019178,2]
[347925632,1736212240181,-844.01,0.00019178,2]
[347925633,1736212240190,-2217.55,0.00019178,2]
[347925634,1736212240199,-1969.16,0.00019178,2]
[347925635,1736212240210,-500.0,0.00019178,2]
[347925636,1736212240220,-1176.08,0.00019178,2]
[347925637,1736212240229,-500.0,0.00019178,2]
[347925638,1736212240241,-500.0,0.00019178,2]
[347925639,1736212240250,-500.0,0.00019178,2]
[347925640,1736212240259,-500.0,0.00019178,2]
[347925641,1736212240269,-607.22,0.00019178,2]
[347925642,1736212240278,-937.64,0.00019178,2]
[347925644,1736212240287,-500.0,0.00019178,2]
[347925646,1736212240296,-500.0,0.00019178,2]
[347925648,1736212240305,-500.0,0.00019178,2]
[347925650,1736212240315,-500.0,0.00019178,2]
[347925652,1736212240324,-500.0,0.00019178,2]
[347925654,1736212240333,-500.0,0.00019178,2]
[347925656,1736212240343,-500.0,0.00019178,2]
[347925658,1736212240352,-500.0,0.00019178,2]
[347925660,1736212240362,-1463.29,0.00019178,2]
[347925662,1736212240371,-502.90602066,0.00019178,2]
[347925664,1736212240380,-500.0,0.00019178,2]
[347925666,1736212240389,-508.73,0.00019178,2]
[347925668,1736212240399,-352.24712626,0.00019178,2]
[347925670,1736212240408,-500.0,0.00019178,2]
[347925672,1736212240418,-500.0,0.00019178,2]
[347925674,1736212240427,-1851.84,0.00019178,2]
[347925676,1736212240436,-500.0,0.00019178,2]
[347925678,1736212240446,-868.14,0.00019178,2]
[347925680,1736212240455,-500.0,0.00019178,2]
[347925682,1736212240465,-500.0,0.00019178,2]
[347925684,1736212240475,-500.0,0.00019178,2]
[347925686,1736212240484,-500.0,0.00019178,2]
[347925688,1736212240494,-500.0,0.00019178,2]
[347925690,1736212240503,-2264.44,0.00019178,2]
[347925692,1736212240512,-500.0,0.00019178,2]
[347925694,1736212240521,-500.0,0.00019178,2]
[347925696,1736212240530,-500.0,0.00019178,2]
[347925698,1736212240539,-500.0,0.00019178,2]
[347925700,1736212240549,-500.0,0.00019178,2]
[347925702,1736212240559,-500.0,0.00019178,2]
[347925704,1736212240568,-500.0,0.00019178,7]
[347925706,1736212240578,-500.0,0.00019178,2]
[347925708,1736212240588,-948.07,0.00019178,2]
[347925710,1736212240597,-964.95,0.00019178,2]
[347925712,1736212240607,-500.0,0.00019178,2]
[347925714,1736212240616,-1108.57,0.00019178,2]
[347925716,1736212240625,-500.0,0.00019178,2]
[347925718,1736212240635,-23776.45,0.00019178,2]
[347925720,1736212240644,-519.49,0.00019178,2]
[347925722,1736212240654,-502.19,0.00019178,2]
[347925724,1736212240666,-1118.16,0.00019178,2]
[347925726,1736212240675,-539.14,0.00019178,2]
[347925728,1736212240684,-500.0,0.00019178,2]
[347925730,1736212240694,-500.0,0.00019178,2]
[347925732,1736212240706,-670.27,0.00019178,2]
[347925734,1736212240715,-955.23,0.00019178,2]
[347925736,1736212240725,-513.61,0.00019178,2]
[347925738,1736212240734,-500.0,0.00019178,2]
[347925740,1736212240744,-500.0,0.00019178,2]
[347925742,1736212240753,-500.0,0.00019178,2]
[347925744,1736212240762,-500.0,0.00019178,2]
[347925746,1736212240773,-500.0,0.00019178,2]
[347925748,1736212240783,-500.0,0.00019178,2]
[347925750,1736212240792,-500.0,0.00019178,2]
[347925753,1736212240801,-500.0,0.00019178,2]
[347925755,1736212240811,-500.0,0.00019178,2]
[347925757,1736212240820,-803.65,0.00019178,2]
[347925759,1736212240829,-1042.78,0.00019178,2]
[347925761,1736212240839,-500.0,0.00019178,2]
[347925763,1736212240848,-500.0,0.00019178,2]
[347925765,1736212240858,-166.807922,0.00019178,2]
[347925767,1736212240867,-1000.0,0.00019194,2]
[347925769,1736212240876,-231.7530013,0.00019256,2]
[347925771,1736212240885,-169.52182272,0.0001926,2]
[347925773,1736212240895,-1000.0,0.00019267,2]
[347925775,1736212240904,-169.52182272,0.00019351,2]
[347925777,1736212240914,-258.0,0.000194,2]
[347925779,1736212240923,-300.0,0.000194,2]
[347925781,1736212240933,-300.0,0.000194,6]
[347925783,1736212240943,-300.0,0.000194,3]
[347925785,1736212240952,-300.0,0.000194,2]
[347925787,1736212240962,-300.0,0.000194,3]
[347925789,1736212240971,-300.0,0.000194,6]
[347925791,1736212240980,-300.0,0.000194,10]
[347925793,1736212240990,-250.0,0.000194,6]
[347925795,1736212241000,-250.0,0.000194,7]
[347925797,1736212241010,-250.0,0.000194,8]
[347925799,1736212241019,-200.0,0.000194,6]
[347925801,1736212241029,-200.0,0.000194,7]
[347925803,1736212241038,-200.0,0.000194,8]
[347925805,1736212241048,-4000.0,0.000194,2]
[347925807,1736212241057,-2981.37067092,0.000194,4]
[347925809,1736212241066,-500.0,0.0001945,2]
[347925812,1736212241077,-152.25168861,0.0001945,2]
[347925814,1736212241087,-6617.39703348,0.00019451,2]
[347925816,1736212241096,-61048.94405883,0.00019451,2]
[347925818,1736212241106,-320576.04446504,0.00019451,4]
[347925820,1736212241123,-931.66,0.00019451,4]
[347925827,1736212241181,-12812.51980055,0.00019451,4]
[347925830,1736212241193,-334.54512468,0.00019451,4]
[347925832,1736212241205,-974.49,0.00019451,4]
[347925834,1736212241218,-3912.0768759,0.00019451,4]
[347925840,1736212241263,-876.88808517,0.00019451,4]
[347925842,1736212241277,-165419.35197538,0.00019451,4]
[347925844,1736212241289,-75196.68126963,0.00019451,4]
[347925847,1736212241301,-658200.18011922,0.00019451,4]
[347925849,1736212241312,-158472.68153226,0.00019451,4]
[347925985,1736212243540,-691.15,0.00019178,2]
[347925998,1736212243657,-1225.179555,0.00019178,2]
[347926000,1736212243672,-1135.120445,0.00019178,2]
[347926002,1736212243682,-500.0,0.00019178,2]
[347926004,1736212243692,-7279.74466095,0.00019451,4]
[347926073,1736212246618,-464.47619764,0.00019451,4]
[347926076,1736212246629,-11114.54668,0.00019451,4]
[347926078,1736212246640,-347.0,0.00019451,4]
[347926080,1736212246652,-894.242857,0.00019451,4]
[347926084,1736212246685,-2563.63276617,0.00019451,4]
[347926086,1736212246695,-936.30009,0.00019451,4]
[347926141,1736212265268,6542.08257785,0.00014991,2]
[347926142,1736212265566,6542.08257785,0.0001499,2]
[347926143,1736212265843,6542.08257785,0.00014999,2]
[347926144,1736212318024,158.786792,0.00013973,2]
[347926155,1736213221517,157.582729,0.00013973,2]
[347926156,1736213226129,-323.03318426,0.00017968,2]
[347926159,1736213233133,-2.96646402,0.00017968,2]
[347926160,1736213233155,-206.745401,0.00018149,2]
[347926161,1736213233181,-4170.25765073,0.0001838,2]
[347926162,1736213233203,-491.607,0.0001848,2]
[347926163,1736213233225,-230.59335824,0.00019078,2]
[347926164,1736213233245,-435.99310408,0.00019078,2]
[347926165,1736213233266,-300.0,0.00019176,2]
[347926166,1736213233287,-153.44,0.00019177,2]
[347926167,1736213233308,-202.503,0.00019177,2]
[347926168,1736213233331,-335.85515072,0.00019177,2]
[347926217,1736213432074,-300.0,0.00018214,2]
[347926218,1736213432083,-200.0,0.00018215,2]
[347926219,1736213432095,-656.29837822,0.00018215,2]
[347926220,1736213432193,-24043.70162178,0.00018215,2]
[347926221,1736213432203,-260.9024181,0.000185,2]
[347926222,1736213432213,-201.76918846,0.00019077,2]
[347926223,1736213432222,-301.33644966,0.00019081,2]
[347926224,1736213432231,-163.14484928,0.00019177,2]
[347926225,1736213432241,-500.0,0.00019177,2]
[347926226,1736213432250,-500.0,0.00019177,2]
[347926227,1736213432259,-500.0,0.00019177,2]
[347926228,1736213432269,-500.0,0.00019177,2]
[347926229,1736213432292,-500.0,0.00019177,2]
[347926230,1736213432303,-214.55953265,0.00019177,2]
[347926231,1736213432316,-192.19009977,0.00019177,2]
[347926232,1736213432327,-150.2365684,0.00019177,2]
[347926233,1736213432339,-349.7634316,0.00019177,2]
[347926234,1736213432348,-500.0,0.00019177,2]
[347926235,1736213432359,-500.0,0.00019177,2]
[347926236,1736213432369,-500.0,0.00019177,2]
[347926237,1736213432378,-646.1424232,0.00019177,2]
[347926238,1736213432388,-500.0,0.00019177,2]
[347926239,1736213432398,-203.30400809,0.00019177,2]
[347926531,1736213440150,-1062.3091529,0.00018192,2]
[347926731,1736213782318,1000.0,0.00025,120]
[347926733,1736214152493,164.890019,0.00013973,2]
[347926735,1736214282705,3124.0,0.00025,120]
[347926737,1736214323787,1374.8611108,0.00025,120]
[347926747,1736214440127,-360.54773138,0.0001682,2]
[347926748,1736214440150,-300.0,0.0001699,2]
[347926749,1736214440172,-18693.7242759,0.00016991,2]
[347926750,1736214440193,-184.6133868,0.00017042,2]
[347926751,1736214440213,-1661.17928703,0.00017992,2]
[347926752,1736214444094,-1380.4808388,0.00017992,2]
[347926755,1736214547106,-500.0,0.00017194,2]
[347926756,1736214547127,-177.85536254,0.000179,2]
[347926757,1736214547148,-9034.68529366,0.00017992,2]
[347926758,1736214547169,-300.0,0.00017997,2]
[347926759,1736214547191,-3335.78094673,0.00018,2]
[347926760,1736214547215,-30722.73606636,0.00018,2]
[347926761,1736214556096,-64.41484911,0.00018,2]
[347926762,1736214556117,-314.0,0.00018,60]
[347926763,1736214556137,-111.58515089,0.00018,2]
[347926784,1736214632533,-125.98484911,0.00018,2]
[347926785,1736214632543,-305.4663498,0.0001804,2]
[347926786,1736214632553,-500.0,0.00018099,2]
[347926787,1736214632563,-237.57,0.00018117,2]
[347926788,1736214632572,-237.57,0.00018345,2]
[347926789,1736214632582,-505.19661673,0.00018399,2]
[347926790,1736214632591,-365.89841087,0.00018399,2]
[347926791,1736214632601,-500.0,0.00018399,2]
[347926792,1736214632611,-500.0,0.00018399,2]
[347926793,1736214632621,-500.0,0.00018399,2]
[347926794,1736214632630,-500.0,0.00018399,2]
[347926795,1736214632639,-500.0,0.00018399,2]
[347926796,1736214632649,-330.5232721,0.00018399,2]
[347926797,1736214632660,-169.4767279,0.00018399,2]
[347926798,1736214632670,-500.0,0.00018399,2]
[347926799,1736214632679,-500.0,0.00018399,2]
[347926800,1736214632689,-500.0,0.00018399,2]
[347926801,1736214632699,-500.0,0.00018399,2]
[347926802,1736214632708,-500.0,0.00018399,2]
[347926803,1736214632717,-422.0406863,0.00018399,2]
[347926804,1736214632727,-500.0,0.00018399,2]
[347926805,1736214632736,-500.0,0.00018399,2]
[347926806,1736214632746,-500.0,0.00018399,2]
[347926807,1736214632755,-500.0,0.00018399,2]
[347926808,1736214632765,-491.09830189,0.00018399,2]
[347926809,1736214632777,-8.90169811,0.00018399,2]
[347926810,1736214632786,-500.0,0.00018399,2]
[347926811,1736214632795,-500.0,0.00018399,2]
[347926812,1736214632805,-500.0,0.00018399,2]
[347926813,1736214632815,-500.0,0.00018399,2]
[347926814,1736214632824,-500.0,0.00018399,2]
[347926815,1736214632834,-500.0,0.00018399,2]
[347926816,1736214632843,-500.0,0.00018399,2]
[347926817,1736214632853,-500.0,0.00018399,2]
[347926818,1736214632862,-133.88874713,0.0001848,2]
[347926875,1736214638300,-358.00825287,0.0001848,2]
[347926876,1736214638309,-154.17,0.000186,2]
[347926877,1736214638319,-177.85536252,0.00018606,2]
[347926878,1736214638328,-1665.52912696,0.00018662,2]
[347926887,1736214640208,-2.36134641,0.00018662,2]
[347926888,1736214640217,-1184.22559052,0.00018662,2]
[347926890,1736214640228,-1510.34085457,0.00018662,2]
[347926891,1736214640239,-1305.72340028,0.00018662,2]
[347926892,1736214640251,-360.89015631,0.00018662,2]
[347926903,1736214643169,-884.62952387,0.00018662,2]
[347926904,1736214643181,-3472.56446835,0.00018662,2]
[347926905,1736214643202,-3903.0,0.00018662,2]
[347927147,1736214719177,2868.14,0.00015001,2]
[347927148,1736215107619,3286.0,0.00025,120]
[347927150,1736215347812,171.819932,0.00013973,2]
[347927156,1736215638139,-5199.2564934,0.00018021,2]
[347927157,1736215638163,-176.001429,0.00018097,2]
[347927158,1736215638186,-300.0,0.00018408,2]
[347927159,1736215638210,-13199.13035574,0.00018409,2]
[347927160,1736215638233,-471.365,0.0001848,2]
[347927161,1736215638254,-175.0,0.00018662,2]
[347927162,1736215638276,-394.0,0.00018951,2]
[347927163,1736215638298,-1000.0,0.00018952,2]
[347927164,1736215638324,-1000.0,0.00019015,2]
[347927165,1736215638351,-220.128,0.00019043,2]
[347927166,1736215638375,-202.4952074,0.00019043,2]
[347927167,1736215638398,-500.0,0.00019051,2]
[347927168,1736215638422,-500.0,0.00019052,2]
[347927169,1736215638446,-564.6688908,0.00019076,2]
[347927170,1736215638469,-703.21418958,0.00019077,2]
[347927171,1736215638490,-1000.0,0.000191,3]
[347927172,1736215638515,-1004.52,0.000191,5]
[347927173,1736215638537,-151.0,0.000191,2]
[347927174,1736215638565,-306.7153256,0.000191,2]